[Event "Live Chess"]
[Site "Chess.com"]
[Date "2024.06.01"]
[Round "-"]
[White "WorcesterYork"]
[Black "nigelst"]
[Result "1-0"]
[WhiteElo "2500"]
[BlackElo "1661"]
[TimeControl "300"]
[EndTime "13:18:15 PDT"]
[Termination "WorcesterYork won by resignation"]

1. e4 {[%clk 0:04:58.1]} 1... c6 {[%clk 0:04:58.7]} 2. c4 {[%clk 0:04:56.9]}
2... d5 {[%clk 0:04:58.1]} 3. cxd5 {[%clk 0:04:56.8]} 3... cxd5 {[%clk
0:04:56.6]} 4. exd5 {[%clk 0:04:56.7]} 4... Nf6 {[%clk 0:04:50.2]} 5. Nc3 {[%clk
0:04:55.6]} 5... Nxd5 {[%clk 0:04:48.6]} 6. Nf3 {[%clk 0:04:55.5]} 6... e6
{[%clk 0:04:46.3]} 7. d4 {[%clk 0:04:54.4]} 7... Nc6 {[%clk 0:04:44.4]} 8. Bd3
{[%clk 0:04:53.2]} 8... Bb4 {[%clk 0:04:43.2]} 9. Bd2 {[%clk 0:04:48.7]} 9...
Bxc3 {[%clk 0:04:40.6]} 10. bxc3 {[%clk 0:04:47.5]} 10... O-O {[%clk 0:04:37.1]}
11. O-O {[%clk 0:04:43.2]} 11... Nf6 {[%clk 0:04:35.8]} 12. Re1 {[%clk
0:04:42.1]} 12... b6 {[%clk 0:04:32.3]} 13. Bg5 {[%clk 0:04:41.1]} 13... Bb7
{[%clk 0:04:30.7]} 14. Qe2 {[%clk 0:04:38]} 14... h6 {[%clk 0:04:27.9]} 15. Bh4
{[%clk 0:04:35.1]} 15... g5 {[%clk 0:04:26.3]} 16. Bg3 {[%clk 0:04:31.7]} 16...
Nh5 {[%clk 0:04:22.4]} 17. Rad1 {[%clk 0:04:27.5]} 17... Nxg3 {[%clk 0:04:20.9]}
18. hxg3 {[%clk 0:04:26.5]} 18... Ne7 {[%clk 0:04:10.3]} 19. c4 {[%clk
0:04:23.4]} 19... Nf5 {[%clk 0:04:00.1]} 20. Bxf5 {[%clk 0:04:19.8]} 20... exf5
{[%clk 0:03:58.5]} 21. d5 {[%clk 0:04:19.3]} 21... Qf6 {[%clk 0:03:53.9]} 22.
Qe5 {[%clk 0:04:17]} 22... Qxe5 {[%clk 0:03:52.4]} 23. Nxe5 {[%clk 0:04:16.2]}
23... Rfe8 {[%clk 0:03:50.3]} 24. f4 {[%clk 0:04:11.5]} 24... Ba6 {[%clk
0:03:46.8]} 25. Rc1 {[%clk 0:04:08.8]} 25... Rac8 {[%clk 0:03:44.2]} 26. d6
{[%clk 0:04:07.9]} 26... Rcd8 {[%clk 0:03:37.7]} 27. d7 {[%clk 0:04:03.1]} 27...
Re7 {[%clk 0:03:35.4]} 28. Red1 {[%clk 0:04:00]} 28... Bb7 {[%clk 0:03:30.9]}
29. c5 {[%clk 0:03:55.6]} 29... f6 {[%clk 0:03:25.4]} 30. c6 {[%clk 0:03:53.3]}
30... fxe5 {[%clk 0:03:16.4]} 31. cxb7 {[%clk 0:03:51.2]} 31... exf4 {[%clk
0:03:12.8]} 32. gxf4 {[%clk 0:03:49.4]} 32... g4 {[%clk 0:03:10.9]} 33. Rc8
{[%clk 0:03:46.7]} 1-0

[Event "Live Chess"]
[Site "Chess.com"]
[Date "2024.06.01"]
[Round "-"]
[White "AlexanderMatlak"]
[Black "LanceMaster23"]
[Result "1-0"]
[WhiteElo "2486"]
[BlackElo "1839"]
[TimeControl "300"]
[EndTime "13:18:27 PDT"]
[Termination "AlexanderMatlak won by resignation"]

1. c4 {[%clk 0:04:46]} 1... Nf6 {[%clk 0:04:54.8]} 2. Nf3 {[%clk 0:04:45.1]}
2... d5 {[%clk 0:04:53.5]} 3. cxd5 {[%clk 0:04:43.8]} 3... Nxd5 {[%clk 0:04:52]}
4. Nc3 {[%clk 0:04:43.3]} 4... Nxc3 {[%clk 0:04:45.6]} 5. bxc3 {[%clk
0:04:43.2]} 5... c5 {[%clk 0:04:43.1]} 6. g3 {[%clk 0:04:42.6]} 6... g6 {[%clk
0:04:40.1]} 7. Bg2 {[%clk 0:04:41.9]} 7... Bg7 {[%clk 0:04:39.2]} 8. h4 {[%clk
0:04:41.3]} 8... h5 {[%clk 0:04:38]} 9. Ng5 {[%clk 0:04:38.3]} 9... Qc7 {[%clk
0:04:28.8]} 10. Rb1 {[%clk 0:04:36.7]} 10... Nc6 {[%clk 0:04:22.6]} 11. Rb5
{[%clk 0:04:33.9]} 11... b6 {[%clk 0:03:10.5]} 12. d4 {[%clk 0:04:29.8]} 12...
cxd4 {[%clk 0:02:50.6]} 13. cxd4 {[%clk 0:04:24.3]} 13... Bb7 {[%clk 0:02:49.3]}
14. Bf4 {[%clk 0:04:12.5]} 14... Qd7 {[%clk 0:02:34.1]} 15. Qb3 {[%clk
0:03:22.6]} 15... O-O {[%clk 0:02:29.3]} 16. e3 {[%clk 0:03:21.1]} 16... e6
{[%clk 0:01:58.9]} 17. O-O {[%clk 0:03:13.1]} 17... Ba6 {[%clk 0:01:55.1]} 18.
a4 {[%clk 0:03:10]} 18... Na5 {[%clk 0:01:49.3]} 19. Qb1 {[%clk 0:03:05.2]}
19... Bxb5 {[%clk 0:01:43.6]} 20. axb5 {[%clk 0:03:05.1]} 20... Rac8 {[%clk
0:01:40.1]} 21. Be4 {[%clk 0:03:04.2]} 21... Nc4 {[%clk 0:01:17.8]} 22. Bxg6
{[%clk 0:02:57.1]} 22... Nd2 {[%clk 0:01:16.7]} 23. Bh7+ {[%clk 0:02:53.3]}
23... Kh8 {[%clk 0:01:15.5]} 24. Qd1 {[%clk 0:02:52.5]} 24... Nxf1 {[%clk
0:01:12.2]} 25. Qxh5 {[%clk 0:02:51.5]} 25... Nxg3 {[%clk 0:00:35.8]} 26. Bxg3
{[%clk 0:02:43.5]} 26... Rc1+ {[%clk 0:00:22.1]} 27. Kg2 {[%clk 0:02:41.5]}
27... Qd5+ {[%clk 0:00:18.3]} 28. Be4+ {[%clk 0:02:40.1]} 28... Bh6 {[%clk
0:00:11.3]} 29. Qxh6+ {[%clk 0:02:37.3]} 1-0

[Event "Live Chess"]
[Site "Chess.com"]
[Date "2024.06.01"]
[Round "-"]
[White "NeilDruggan73"]
[Black "JanMur7"]
[Result "0-1"]
[WhiteElo "1755"]
[BlackElo "2312"]
[TimeControl "300"]
[EndTime "13:18:36 PDT"]
[Termination "JanMur7 won by checkmate"]

1. d4 {[%clk 0:04:50.7]} 1... Nf6 {[%clk 0:04:59.1]} 2. Bg5 {[%clk 0:04:48.5]}
2... d5 {[%clk 0:04:55.8]} 3. Bxf6 {[%clk 0:04:46.8]} 3... exf6 {[%clk
0:04:55.7]} 4. e3 {[%clk 0:04:45.6]} 4... c5 {[%clk 0:04:55]} 5. dxc5 {[%clk
0:04:35.4]} 5... Bxc5 {[%clk 0:04:54.9]} 6. g3 {[%clk 0:04:34]} 6... d4 {[%clk
0:04:53.3]} 7. exd4 {[%clk 0:04:22.6]} 7... Qxd4 {[%clk 0:04:53.2]} 8. Qxd4
{[%clk 0:04:20.4]} 8... Bxd4 {[%clk 0:04:53.1]} 9. c3 {[%clk 0:04:19]} 9... Bb6
{[%clk 0:04:51.2]} 10. Bg2 {[%clk 0:04:17.9]} 10... O-O {[%clk 0:04:49.8]} 11.
a4 {[%clk 0:04:10.2]} 11... Re8+ {[%clk 0:04:46.8]} 12. Kd2 {[%clk 0:04:09]}
12... Bxf2 {[%clk 0:04:43.4]} 13. Kd3 {[%clk 0:04:01.8]} 13... Bf5+ {[%clk
0:04:39.1]} 14. Kc4 {[%clk 0:03:59.7]} 14... Nc6 {[%clk 0:04:34.5]} 15. Nd2
{[%clk 0:03:52.5]} 15... Na5+ {[%clk 0:04:24.8]} 16. Kb4 {[%clk 0:03:51]} 16...
b6 {[%clk 0:04:24]} 17. c4 {[%clk 0:03:27.1]} 17... Bc5+ {[%clk 0:04:08.8]} 18.
Kb5 {[%clk 0:03:19.2]} 18... a6# {[%clk 0:04:07.2]} 0-1

[Event "Live Chess"]
[Site "Chess.com"]
[Date "2024.06.01"]
[Round "-"]
[White "CarmelJane"]
[Black "DarranAS"]
[Result "1-0"]
[WhiteElo "2084"]
[BlackElo "1426"]
[TimeControl "300"]
[EndTime "13:18:37 PDT"]
[Termination "CarmelJane won by checkmate"]

1. e4 {[%clk 0:04:58.5]} 1... e5 {[%clk 0:04:56.8]} 2. Nf3 {[%clk 0:04:56.5]}
2... Nc6 {[%clk 0:04:54.9]} 3. d4 {[%clk 0:04:55.8]} 3... exd4 {[%clk
0:04:50.9]} 4. Bc4 {[%clk 0:04:54.9]} 4... Nf6 {[%clk 0:04:37]} 5. e5 {[%clk
0:04:53.8]} 5... Na5 {[%clk 0:04:31.3]} 6. exf6 {[%clk 0:04:23]} 6... Bb4+
{[%clk 0:04:22.5]} 7. Bd2 {[%clk 0:04:14.5]} 7... Bxd2+ {[%clk 0:04:19.8]} 8.
Nbxd2 {[%clk 0:04:14.1]} 8... Nxc4 {[%clk 0:04:05.7]} 9. Nxc4 {[%clk 0:04:10.9]}
9... Qxf6 {[%clk 0:04:03.1]} 10. Qxd4 {[%clk 0:04:08.5]} 10... Qg6 {[%clk
0:03:56.5]} 11. O-O {[%clk 0:04:06.5]} 11... d5 {[%clk 0:03:52.4]} 12. Rfe1+
{[%clk 0:04:01.6]} 12... Kf8 {[%clk 0:03:49.1]} 13. Qc5+ {[%clk 0:03:56.6]}
13... Kg8 {[%clk 0:03:47.2]} 14. Re8# {[%clk 0:03:54.9]} 1-0

[Event "Live Chess"]
[Site "Chess.com"]
[Date "2024.06.01"]
[Round "-"]
[White "koekoekoe"]
[Black "booktrunk"]
[Result "1-0"]
[WhiteElo "2048"]
[BlackElo "1382"]
[TimeControl "300"]
[EndTime "13:18:54 PDT"]
[Termination "koekoekoe won by resignation"]

1. d4 {[%clk 0:04:59.2]} 1... b6 {[%clk 0:04:56.6]} 2. Bf4 {[%clk 0:04:58.7]}
2... Bb7 {[%clk 0:04:55.4]} 3. e3 {[%clk 0:04:58.3]} 3... e6 {[%clk 0:04:53.9]}
4. Nf3 {[%clk 0:04:57.9]} 4... Nf6 {[%clk 0:04:52.7]} 5. c4 {[%clk 0:04:57.5]}
5... h6 {[%clk 0:04:51.8]} 6. Nc3 {[%clk 0:04:56.9]} 6... g5 {[%clk 0:04:50.9]}
7. Bg3 {[%clk 0:04:53.4]} 7... Nh5 {[%clk 0:04:49.1]} 8. Bd3 {[%clk 0:04:51.1]}
8... Nxg3 {[%clk 0:04:47.6]} 9. hxg3 {[%clk 0:04:51]} 9... c5 {[%clk 0:04:42.4]}
10. Be4 {[%clk 0:04:38.2]} 10... Bxe4 {[%clk 0:04:39.3]} 11. Nxe4 {[%clk
0:04:38.1]} 11... cxd4 {[%clk 0:04:38]} 12. Qxd4 {[%clk 0:04:34.6]} 12... Bb4+
{[%clk 0:04:36.6]} 13. Nc3 {[%clk 0:04:33]} 13... Nc6 {[%clk 0:04:32.9]} 14.
Qxh8+ {[%clk 0:04:30.9]} 14... Ke7 {[%clk 0:04:28.8]} 1-0

[Event "Live Chess"]
[Site "Chess.com"]
[Date "2024.06.01"]
[Round "-"]
[White "cymbalshift"]
[Black "Silverback7829"]
[Result "1-0"]
[WhiteElo "1658"]
[BlackElo "983"]
[TimeControl "300"]
[EndTime "13:18:56 PDT"]
[Termination "cymbalshift won by checkmate"]

1. d4 {[%clk 0:04:58.8]} 1... d5 {[%clk 0:04:58.5]} 2. e4 {[%clk 0:04:57.9]}
2... c6 {[%clk 0:04:56]} 3. e5 {[%clk 0:04:55.2]} 3... f6 {[%clk 0:04:51.7]} 4.
Bd3 {[%clk 0:04:48.2]} 4... fxe5 {[%clk 0:04:48]} 5. Qh5+ {[%clk 0:04:43.9]}
5... g6 {[%clk 0:04:43.8]} 6. Qxe5 {[%clk 0:04:42.6]} 6... Nf6 {[%clk
0:04:38.4]} 7. Bg5 {[%clk 0:04:40.3]} 7... Nbd7 {[%clk 0:04:28.4]} 8. Qe2 {[%clk
0:04:24.1]} 8... Bg7 {[%clk 0:04:15.6]} 9. Nf3 {[%clk 0:04:20.5]} 9... b6 {[%clk
0:04:08.7]} 10. c4 {[%clk 0:04:11.2]} 10... dxc4 {[%clk 0:04:05]} 11. Bxc4
{[%clk 0:04:07.9]} 11... b5 {[%clk 0:03:56.2]} 12. Bb3 {[%clk 0:04:05]} 12...
Ba6 {[%clk 0:03:50.9]} 13. O-O {[%clk 0:04:00.9]} 13... Qc8 {[%clk 0:03:44.2]}
14. Re1 {[%clk 0:03:56.9]} 14... b4 {[%clk 0:03:38.9]} 15. Qxe7# {[%clk
0:03:54.5]} 1-0

[Event "Live Chess"]
[Site "Chess.com"]
[Date "2024.06.01"]
[Round "-"]
[White "Kyrylo7770"]
[Black "Bradfield133"]
[Result "0-1"]
[WhiteElo "1655"]
[BlackElo "1913"]
[TimeControl "300"]
[EndTime "13:19:16 PDT"]
[Termination "Bradfield133 won by checkmate"]

1. d4 {[%clk 0:04:58.8]} 1... d6 {[%clk 0:04:57.1]} 2. Nf3 {[%clk 0:04:58.3]}
2... f5 {[%clk 0:04:53.8]} 3. Bg5 {[%clk 0:04:57.6]} 3... Nd7 {[%clk 0:04:51.8]}
4. e3 {[%clk 0:04:56.8]} 4... Ngf6 {[%clk 0:04:50.7]} 5. h4 {[%clk 0:04:56.1]}
5... e5 {[%clk 0:04:43.2]} 6. d5 {[%clk 0:04:55.1]} 6... h6 {[%clk 0:04:41.1]}
7. Bxf6 {[%clk 0:04:53.9]} 7... Qxf6 {[%clk 0:04:41]} 8. Nc3 {[%clk 0:04:52.4]}
8... Be7 {[%clk 0:04:36.5]} 9. Be2 {[%clk 0:04:48]} 9... O-O {[%clk 0:04:34.9]}
10. g3 {[%clk 0:04:44.9]} 10... c6 {[%clk 0:04:19.9]} 11. dxc6 {[%clk
0:04:39.6]} 11... bxc6 {[%clk 0:04:18.1]} 12. Bc4+ {[%clk 0:04:38.2]} 12... Kh8
{[%clk 0:04:10]} 13. Bb3 {[%clk 0:04:35.5]} 13... Nc5 {[%clk 0:04:04]} 14. Qe2
{[%clk 0:04:28.3]} 14... f4 {[%clk 0:03:57.6]} 15. gxf4 {[%clk 0:04:25.9]} 15...
exf4 {[%clk 0:03:48.4]} 16. e4 {[%clk 0:04:24.8]} 16... Ba6 {[%clk 0:03:38.9]}
17. Bc4 {[%clk 0:04:22.5]} 17... Bxc4 {[%clk 0:03:21.3]} 18. Qxc4 {[%clk
0:04:21.6]} 18... Rab8 {[%clk 0:03:13.7]} 19. O-O-O {[%clk 0:04:20]} 19... a5
{[%clk 0:03:02.9]} 20. b3 {[%clk 0:03:51.7]} 20... Rb4 {[%clk 0:02:54]} 21. e5
{[%clk 0:03:43.7]} 21... dxe5 {[%clk 0:02:42.5]} 22. Qe2 {[%clk 0:03:40.2]}
22... e4 {[%clk 0:02:38]} 23. Nxe4 {[%clk 0:03:39.4]} 23... Rxe4 {[%clk
0:02:34.5]} 24. Qf1 {[%clk 0:03:32]} 24... Qa1+ {[%clk 0:02:29.5]} 25. Kd2
{[%clk 0:03:31.3]} 25... Rd8+ {[%clk 0:02:28.3]} 26. Nd4 {[%clk 0:03:27.1]}
26... Rdxd4+ {[%clk 0:02:25.5]} 27. Qd3 {[%clk 0:03:24.3]} 27... Rxd3+ {[%clk
0:02:18.2]} 28. cxd3 {[%clk 0:03:23.5]} 28... Qd4 {[%clk 0:02:14.8]} 29. Rc1
{[%clk 0:03:18.7]} 29... Qxd3# {[%clk 0:02:10.4]} 0-1

[Event "Live Chess"]
[Site "Chess.com"]
[Date "2024.06.01"]
[Round "-"]
[White "dhairyapandyauk"]
[Black "dl_chess"]
[Result "1-0"]
[WhiteElo "1657"]
[BlackElo "1182"]
[TimeControl "300"]
[EndTime "13:19:18 PDT"]
[Termination "dhairyapandyauk won by resignation"]

1. e4 {[%clk 0:04:58.4]} 1... e6 {[%clk 0:04:57.2]} 2. d4 {[%clk 0:04:56.8]}
2... d5 {[%clk 0:04:56.4]} 3. exd5 {[%clk 0:04:56.2]} 3... exd5 {[%clk
0:04:54.5]} 4. Bd3 {[%clk 0:04:55.8]} 4... Bd6 {[%clk 0:04:53.2]} 5. Ne2 {[%clk
0:04:55.4]} 5... Nf6 {[%clk 0:04:50.8]} 6. O-O {[%clk 0:04:55]} 6... O-O {[%clk
0:04:49.7]} 7. c3 {[%clk 0:04:54.6]} 7... c6 {[%clk 0:04:48.4]} 8. f4 {[%clk
0:04:54.2]} 8... Bg4 {[%clk 0:04:44.8]} 9. h3 {[%clk 0:04:51.5]} 9... Bxe2
{[%clk 0:04:43.1]} 10. Qxe2 {[%clk 0:04:51.1]} 10... Re8 {[%clk 0:04:41.9]} 11.
Qf3 {[%clk 0:04:50.3]} 11... Qc7 {[%clk 0:04:39.5]} 12. Nd2 {[%clk 0:04:49.6]}
12... Nbd7 {[%clk 0:04:38.2]} 13. Qf2 {[%clk 0:04:47.3]} 13... Nh5 {[%clk
0:04:33]} 14. Qh4 {[%clk 0:04:37.1]} 14... Ndf6 {[%clk 0:04:23.2]} 15. Nb3
{[%clk 0:04:12.9]} 15... Nxf4 {[%clk 0:04:09.7]} 16. Bxf4 {[%clk 0:04:10.3]}
16... Bxf4 {[%clk 0:04:07]} 17. Qxf4 {[%clk 0:04:09.1]} 17... h6 {[%clk
0:03:52.1]} 18. Qxc7 {[%clk 0:04:06.6]} 1-0

[Event "Live Chess"]
[Site "Chess.com"]
[Date "2024.06.01"]
[Round "-"]
[White "grillage"]
[Black "bobby_jamesFischer86"]
[Result "1-0"]
[WhiteElo "1873"]
[BlackElo "1614"]
[TimeControl "300"]
[EndTime "13:19:24 PDT"]
[Termination "grillage won on time"]

1. d4 {[%clk 0:04:57.3]} 1... d5 {[%clk 0:04:58.5]} 2. Nf3 {[%clk 0:04:56.3]}
2... c6 {[%clk 0:04:45.7]} 3. c4 {[%clk 0:04:55.2]} 3... Nf6 {[%clk 0:04:44.4]}
4. Qc2 {[%clk 0:04:54.3]} 4... e6 {[%clk 0:04:42.7]} 5. cxd5 {[%clk 0:04:52.5]}
5... exd5 {[%clk 0:04:40.9]} 6. Nc3 {[%clk 0:04:49.7]} 6... g6 {[%clk
0:04:39.4]} 7. Bg5 {[%clk 0:04:47.6]} 7... Bg7 {[%clk 0:04:38]} 8. e3 {[%clk
0:04:46.4]} 8... O-O {[%clk 0:04:36.8]} 9. Bd3 {[%clk 0:04:44.8]} 9... Re8
{[%clk 0:04:28.4]} 10. O-O {[%clk 0:04:43.2]} 10... Bg4 {[%clk 0:04:26.2]} 11.
Ne5 {[%clk 0:04:39.8]} 11... Be6 {[%clk 0:04:24.8]} 12. b4 {[%clk 0:04:33.8]}
12... h6 {[%clk 0:04:23]} 13. Bh4 {[%clk 0:04:32]} 13... g5 {[%clk 0:04:19]} 14.
Bg3 {[%clk 0:04:30.9]} 14... Nbd7 {[%clk 0:04:16.7]} 15. a4 {[%clk 0:04:23.6]}
15... Nxe5 {[%clk 0:04:10.8]} 16. Bxe5 {[%clk 0:04:22.3]} 16... Nd7 {[%clk
0:04:08.8]} 17. Bxg7 {[%clk 0:04:20.6]} 17... Kxg7 {[%clk 0:04:07.7]} 18. b5
{[%clk 0:04:15.1]} 18... c5 {[%clk 0:04:03.1]} 19. dxc5 {[%clk 0:04:11.3]} 19...
Nxc5 {[%clk 0:04:01.5]} 20. Be2 {[%clk 0:04:09.2]} 20... Rc8 {[%clk 0:03:55.5]}
21. Qb2 {[%clk 0:03:59.8]} 21... f6 {[%clk 0:03:49.4]} 22. Bh5 {[%clk
0:03:56.8]} 22... Rf8 {[%clk 0:03:46.4]} 23. Rad1 {[%clk 0:03:47.6]} 23... b6
{[%clk 0:03:03]} 24. Ne2 {[%clk 0:03:43.9]} 24... Bf7 {[%clk 0:02:42.7]} 25.
Bxf7 {[%clk 0:03:42]} 25... Rxf7 {[%clk 0:02:41.3]} 26. Nd4 {[%clk 0:03:40.8]}
26... Qd7 {[%clk 0:02:27.2]} 27. Qa2 {[%clk 0:03:27]} 27... Ne4 {[%clk
0:02:22.7]} 28. Nc6 {[%clk 0:03:23.2]} 28... Nc3 {[%clk 0:02:12.3]} 29. Qb3
{[%clk 0:03:08.4]} 29... Nxd1 {[%clk 0:01:51.2]} 30. Rxd1 {[%clk 0:03:07.2]}
30... Rxc6 {[%clk 0:01:38.8]} 31. bxc6 {[%clk 0:03:04.3]} 31... Qxc6 {[%clk
0:01:37.1]} 32. Qxd5 {[%clk 0:03:02.9]} 32... Qxd5 {[%clk 0:01:29.8]} 33. Rxd5
{[%clk 0:03:01.9]} 33... Rc7 {[%clk 0:01:27.9]} 34. g3 {[%clk 0:03:00]} 34...
Rc4 {[%clk 0:01:26.3]} 35. Rd7+ {[%clk 0:02:58.4]} 35... Kg6 {[%clk 0:01:24.9]}
36. Rxa7 {[%clk 0:02:58]} 36... Rb4 {[%clk 0:01:18.4]} 37. Kg2 {[%clk
0:02:55.7]} 37... h5 {[%clk 0:01:15.8]} 38. h3 {[%clk 0:02:54.9]} 38... g4
{[%clk 0:01:11.4]} 39. h4 {[%clk 0:02:49.5]} 39... Kf5 {[%clk 0:01:04.6]} 40.
Ra6 {[%clk 0:02:40.8]} 40... Ke4 {[%clk 0:00:57.8]} 41. Ra8 {[%clk 0:02:26.1]}
41... f5 {[%clk 0:00:53.8]} 42. Ra7 {[%clk 0:02:20.4]} 42... Kd3 {[%clk
0:00:40.6]} 43. a5 {[%clk 0:02:17.1]} 43... b5 {[%clk 0:00:30.7]} 44. a6 {[%clk
0:02:11.9]} 44... Ke2 {[%clk 0:00:29.4]} 45. Rf7 {[%clk 0:02:06.1]} 45... Ra4
{[%clk 0:00:14.5]} 46. a7 {[%clk 0:02:03]} 46... b4 {[%clk 0:00:12.1]} 47. Rxf5
{[%clk 0:01:55.8]} 47... Rxa7 {[%clk 0:00:11.2]} 48. Rb5 {[%clk 0:01:53.6]}
48... Ra6 {[%clk 0:00:08.8]} 49. Rxb4 {[%clk 0:01:50.7]} 49... Rf6 {[%clk
0:00:07.7]} 50. Rb2+ {[%clk 0:01:48.2]} 50... Ke1 {[%clk 0:00:06.9]} 51. Kg1
{[%clk 0:01:31.4]} 51... Rc6 {[%clk 0:00:04.4]} 52. Rb4 {[%clk 0:01:27.7]} 52...
Rf6 {[%clk 0:00:03.3]} 53. Rf4 {[%clk 0:01:26.6]} 53... Rxf4 {[%clk 0:00:02]}
54. exf4 {[%clk 0:01:24.9]} 54... Ke2 {[%clk 0:00:01.1]} 55. f5 {[%clk
0:01:24.4]} 1-0

[Event "Live Chess"]
[Site "Chess.com"]
[Date "2024.06.01"]
[Round "-"]
[White "Stanbad1"]
[Black "Tushinskiy"]
[Result "0-1"]
[WhiteElo "2652"]
[BlackElo "2266"]
[TimeControl "300"]
[EndTime "13:19:25 PDT"]
[Termination "Tushinskiy won by resignation"]

1. d4 {[%clk 0:04:58.6]} 1... d5 {[%clk 0:04:58.8]} 2. Nc3 {[%clk 0:04:53.9]}
2... c6 {[%clk 0:04:58.7]} 3. Bf4 {[%clk 0:04:52.1]} 3... Nf6 {[%clk 0:04:56.6]}
4. e3 {[%clk 0:04:50.9]} 4... e6 {[%clk 0:04:54.5]} 5. Nf3 {[%clk 0:04:46.6]}
5... Bd6 {[%clk 0:04:53.8]} 6. Ne5 {[%clk 0:04:45.2]} 6... Qe7 {[%clk
0:04:52.7]} 7. Qf3 {[%clk 0:04:40.4]} 7... Nbd7 {[%clk 0:04:49.2]} 8. Be2 {[%clk
0:04:39.6]} 8... Nf8 {[%clk 0:04:46.4]} 9. Qg3 {[%clk 0:04:38.2]} 9... Bxe5
{[%clk 0:04:40.7]} 10. dxe5 {[%clk 0:04:35.6]} 10... N6d7 {[%clk 0:04:39.3]} 11.
Qxg7 {[%clk 0:04:33.9]} 11... Ng6 {[%clk 0:04:36.3]} 12. h4 {[%clk 0:04:31.3]}
12... Qf8 {[%clk 0:04:33.2]} 13. Qxf8+ {[%clk 0:04:28.9]} 13... Rxf8 {[%clk
0:04:32.7]} 14. h5 {[%clk 0:04:27.1]} 14... Ngxe5 {[%clk 0:04:31.9]} 15. O-O-O
{[%clk 0:04:25.3]} 15... f5 {[%clk 0:04:26.6]} 16. g3 {[%clk 0:04:19]} 16... a6
{[%clk 0:04:22.7]} 17. h6 {[%clk 0:04:16.7]} 17... b5 {[%clk 0:04:18.1]} 18. Nb1
{[%clk 0:04:13.4]} 18... Bb7 {[%clk 0:04:11.3]} 19. Nd2 {[%clk 0:04:11.5]} 19...
Ng6 {[%clk 0:04:09.1]} 20. Bg5 {[%clk 0:04:10]} 20... Nde5 {[%clk 0:04:06]} 21.
Nf3 {[%clk 0:04:07.8]} 21... Nxf3 {[%clk 0:04:03.3]} 22. Bxf3 {[%clk 0:04:07.5]}
22... Kd7 {[%clk 0:04:02.5]} 23. Bh5 {[%clk 0:04:03.9]} 23... Rg8 {[%clk
0:03:59.9]} 24. Rhe1 {[%clk 0:04:01.6]} 24... Raf8 {[%clk 0:03:49.8]} 25. b3
{[%clk 0:03:58.4]} 25... Ne7 {[%clk 0:03:44.2]} 26. Bf4 {[%clk 0:03:55.7]} 26...
Ng6 {[%clk 0:03:43.1]} 27. Bxg6 {[%clk 0:03:54.7]} 27... Rxg6 {[%clk 0:03:43]}
28. c4 {[%clk 0:03:54.1]} 28... bxc4 {[%clk 0:03:40.4]} 29. bxc4 {[%clk
0:03:52.9]} 29... Ke7 {[%clk 0:03:37.6]} 30. cxd5 {[%clk 0:03:52.1]} 30... cxd5
{[%clk 0:03:37.5]} 31. Kd2 {[%clk 0:03:51]} 31... Bc6 {[%clk 0:03:36.6]} 32. Rb1
{[%clk 0:03:49.9]} 32... Rc8 {[%clk 0:03:35.4]} 33. Rec1 {[%clk 0:03:48.8]}
33... Rgg8 {[%clk 0:03:31.8]} 34. Rb6 {[%clk 0:03:45.9]} 34... Bb5 {[%clk
0:03:30.6]} 35. Rb7+ {[%clk 0:03:40.6]} 35... Kf6 {[%clk 0:03:29]} 36. Rxc8
{[%clk 0:03:37.8]} 36... Rxc8 {[%clk 0:03:28.9]} 37. Rxh7 {[%clk 0:03:35.8]}
37... e5 {[%clk 0:03:28.1]} 38. Bxe5+ {[%clk 0:03:30.1]} 38... Kxe5 {[%clk
0:03:28]} 39. Rf7 {[%clk 0:03:29.2]} 39... Rh8 {[%clk 0:03:26.1]} 40. h7 {[%clk
0:03:22.3]} 40... Ke4 {[%clk 0:03:23.4]} 41. Rg7 {[%clk 0:03:19.5]} 41... Kf3
{[%clk 0:03:21.3]} 42. Kc3 {[%clk 0:03:18.4]} 42... Kxf2 {[%clk 0:03:19.8]} 43.
Kd4 {[%clk 0:03:17.2]} 43... Bc4 {[%clk 0:03:16]} 44. Rg5 {[%clk 0:03:12.6]}
44... Rxh7 {[%clk 0:03:13]} 45. Rxf5+ {[%clk 0:03:11.8]} 45... Kxg3 {[%clk
0:03:12.3]} 46. e4 {[%clk 0:03:11.1]} 46... Rh4 {[%clk 0:03:11]} 47. Re5 {[%clk
0:03:08.5]} 47... Bxa2 {[%clk 0:03:04.1]} 48. Ke3 {[%clk 0:03:06.8]} 48... dxe4
{[%clk 0:02:46.3]} 49. Rxe4 {[%clk 0:03:06]} 49... Rh1 {[%clk 0:02:45.1]} 50.
Ra4 {[%clk 0:03:03.5]} 50... Bd5 {[%clk 0:02:36.9]} 51. Rxa6 {[%clk 0:03:01.4]}
51... Bf3 {[%clk 0:02:35.8]} 52. Rg6+ {[%clk 0:02:58.8]} 52... Bg4 {[%clk
0:02:34.6]} 53. Rf6 {[%clk 0:02:57.8]} 53... Re1+ {[%clk 0:02:33]} 54. Kd2
{[%clk 0:02:56.7]} 54... Re8 {[%clk 0:02:32.5]} 55. Rd6 {[%clk 0:02:55]} 55...
Bf3 {[%clk 0:02:31.4]} 56. Rd4 {[%clk 0:02:53.9]} 56... Kf2 {[%clk 0:02:30.3]}
57. Rd3 {[%clk 0:02:51.8]} 57... Be4 {[%clk 0:02:26.5]} 58. Rd6 {[%clk
0:02:48.8]} 58... Re5 {[%clk 0:02:22.6]} 59. Rf6+ {[%clk 0:02:47.8]} 59... Bf3
{[%clk 0:02:21.5]} 60. Kd3 {[%clk 0:02:45.6]} 60... Rd5+ {[%clk 0:02:20.3]} 61.
Kc4 {[%clk 0:02:45]} 61... Rd8 {[%clk 0:02:19.7]} 62. Re6 {[%clk 0:02:43.5]}
62... Bd5+ {[%clk 0:02:17.9]} 0-1